bitfinex-derivatives/quotes_SOLF0:USTF0_20240930
["timestamp","ask_amount","ask_price","bid_price","bid_amount"]
[1727661463347,0.12502,157.67,157.58,12.18]
[1727661463557,3.1711,157.64,157.6,3.1716]
[1727661465347,3.1711,157.64,157.61,3.1715]
[1727661466053,12.30502,157.67,157.56,2.5936]
[1727661466351,1.2894,157.66,157.58,3.1721]
[1727661466752,13.4278,157.65,157.55,12.30502]
[1727661466958,13.4278,157.65,157.56,3.1724]
[1727661466959,3.22349784,157.64,157.56,3.1724]
[1727661467251,3.1721,157.59,157.55,0.12502]
[1727661468143,4.48555254,157.64,157.55,0.12502]
[1727661468144,12.18,157.63,157.55,0.12502]
[1727661469551,3.1722,157.58,157.55,0.12502]
[1727661471651,12.18,157.59,157.49,0.12502]
[1727661471859,0.12502,157.61,157.49,0.12502]
[1727661471860,12.18,157.56,157.49,0.12502]
[1727661472051,3.1737,157.51,157.49,0.12502]
[1727661473058,3.1736,157.51,157.49,0.12502]
[1727661473256,12.18,157.5,157.43,3.30012]
[1727661473866,3.1743,157.48,157.44,3.175]
[1727661474059,4.64254595,157.55,157.43,12.30502]
[1727661474760,3.1734,157.53,157.47,3.1742]
[1727661474958,1.47502,157.55,157.46,12.18]
[1727661475362,4.64792,157.55,157.5,3.1736]
[1727661475660,1.47502,157.55,157.46,19.5]
[1727661476070,1.47502,157.55,157.51,3.1734]
[1727661476458,1.47502,157.55,157.46,19.5]
[1727661476658,0.12502,157.55,157.52,3.1732]
[1727661476853,0.12502,157.55,157.49,3.1608582]
[1727661477059,0.12502,157.55,157.47,1.2476]
[1727661478069,0.12502,157.55,157.49,3.1739]
[1727661478263,0.12502,157.55,157.49,3.24183257]
[1727661478462,0.12502,157.55,157.48,19.5]
[1727661478658,0.12502,157.55,157.54,3.173]
[1727661480663,0.12502,157.55,157.51,3.12187502]
[1727661481071,0.12502,157.55,157.47,1.2476]
[1727661481271,3.1731,157.54,157.45,20.7517]
[1727661481568,0.12502,157.55,157.48,3.174]
[1727661481761,2.75992,157.55,157.43,0.12502]
[1727661482163,2.75992,157.55,157.46,3.1744]
[1727661482470,19.5,157.54,157.43,0.12502]
[1727661482968,3.1741,157.49,157.43,0.12502]
[1727661483172,3.1741,157.49,157.45,3.1747]
[1727661483775,3.1741,157.49,157.45,3.1746]
[1727661483964,3.1741,157.49,157.43,0.12502]
[1727661484470,19.5,157.54,157.45,3.1746]
[1727661484471,3.1742,157.48,157.45,3.1746]
[1727661485277,3.1742,157.48,157.43,0.12502]
[1727661485278,3.1742,157.48,157.44,3.1749]
[1727661486161,19.5,157.54,157.43,0.12502]
[1727661486361,2.75992,157.55,157.43,0.12502]
[1727661486362,19.5,157.51,157.43,0.12502]
[1727661486571,19.62502,157.49,157.37,0.12502]
[1727661486877,19.5,157.46,157.37,0.12502]
[1727661487476,22.75325695,157.46,157.37,0.12502]
[1727661487666,19.5,157.43,157.37,0.12502]
[1727661487870,3.1758,157.4,157.37,0.12502]
[1727661488770,1.2425,157.41,157.37,0.12502]
[1727661489073,1.2425,157.41,157.32,0.12518]
[1727661490065,3.1763,157.38,157.32,0.12518]
[1727661490264,1.2425,157.41,157.32,0.12518]
[1727661491676,19.5,157.4,157.32,0.12518]
[1727661491968,3.24724481,157.39,157.32,0.12518]
[1727661492573,3.1766,157.37,157.32,3.30248]
[1727661494075,3.1764,157.37,157.32,0.12518]
[1727661494470,1.3368,157.38,157.32,0.12518]
[1727661494672,3.1769,157.35,157.32,0.12518]
[1727661495275,3.10788882,157.37,157.32,0.12518]
[1727661495476,1.3368,157.38,157.32,0.12518]
[1727661495975,3.13300372,157.37,157.32,0.12518]
[1727661496174,1.3368,157.38,157.32,0.12518]
[1727661496476,4.50858874,157.38,157.32,0.12518]
[1727661496779,3.1767,157.36,157.32,0.12518]
[1727661497178,4.5578648,157.38,157.32,0.12518]
[1727661497475,3.1768,157.35,157.32,0.12518]
[1727661497979,3.1767,157.36,157.32,0.12518]
[1727661499071,3.1768,157.35,157.32,0.12518]
[1727661500176,3.177,157.34,157.32,0.12518]
[1727661500887,20.8368,157.38,157.32,0.12518]
[1727661501066,24.05988967,157.38,157.32,0.12518]
[1727661501474,3.1769,157.35,157.32,0.12518]
[1727661503181,3.1765,157.37,157.32,0.12518]
[1727661503484,24.05988967,157.38,157.32,0.12518]
[1727661503886,3.1768,157.35,157.32,0.12518]
[1727661504584,19.5,157.35,157.25,0.12502]
[1727661504775,1.2721,157.34,157.25,0.12502]
[1727661505276,1.2721,157.34,157.25,3.30382]
[1727661505472,1.2721,157.34,157.25,0.12502]
[1727661505785,3.1776,157.31,157.26,3.1784]
[1727661506284,3.178,157.29,157.25,3.30382]
[1727661506481,13.4821,157.34,157.25,0.12502]
[1727661506977,12.21,157.31,157.25,0.12502]
[1727661507183,15.37193353,157.31,157.25,0.12502]
[1727661507382,3.1786,157.26,157.25,0.12502]
[1727661507579,15.37193353,157.31,157.19,12.33502]
[1727661507580,12.21,157.29,157.19,0.12502]
[1727661508079,3.1792,157.23,157.19,0.12502]
[1727661508279,12.21,157.29,157.19,0.12502]
[1727661509197,84.17695353,157.31,157.2,12.21]
[1727661509592,91.51695353,157.31,157.19,0.12502]
[1727661509788,1.2428,157.3,157.19,0.12502]
[1727661509998,1.2428,157.3,157.22,3.1794]
[1727661510199,1.2428,157.3,157.19,0.12502]
[1727661510496,1.2428,157.3,157.21,3.1795]
[1727661510692,1.2428,157.3,157.19,0.12502]
[1727661510896,3.1785,157.27,157.22,3.1794]
[1727661511099,3.1785,157.27,157.2,19.55]
[1727661511504,1.2428,157.3,157.23,3.1792]
[1727661511703,3.1782,157.28,157.23,3.1792]
[1727661511901,1.2428,157.3,157.2,19.55]
[1727661512603,1.2428,157.3,157.24,3.1789]
[1727661512906,3.178,157.29,157.24,3.1789]
[1727661513300,1.2428,157.3,157.2,19.55]
[1727661513501,3.1783,157.28,157.2,19.55]
[1727661513701,1.2428,157.3,157.2,19.55]
[1727661513901,1.2428,157.3,157.19,0.12502]
[1727661514201,19.55,157.28,157.19,0.12502]
[1727661514406,1.3308,157.27,157.19,0.12502]
[1727661514815,1.2825,157.26,157.19,0.12502]
[1727661515103,3.179,157.24,157.19,0.12502]
[1727661515304,1.2825,157.26,157.19,0.12502]
[1727661515704,3.179,157.25,157.2,3.1798]
[1727661516406,1.2825,157.26,157.19,0.12502]
[1727661516706,3.1791,157.24,157.19,0.12502]
[1727661517606,1.2428,157.3,157.19,0.12502]
[1727661518107,19.55,157.28,157.19,0.12502]
[1727661519612,1.3354,157.29,157.19,0.12502]
[1727661519812,1.3354,157.29,157.22,3.1794]
[1727661520004,1.3354,157.29,157.19,0.12502]
[1727661520406,1.3354,157.29,157.22,3.1792]
[1727661520706,1.3354,157.29,157.19,0.12502]
[1727661520909,1.3354,157.29,157.23,3.1791]
[1727661521397,1.3354,157.29,157.19,0.12502]
[1727661521601,1.2428,157.3,157.19,0.12502]
[1727661522004,1.2428,157.3,157.22,3.1793]
[1727661522511,3.1788,157.25,157.19,0.12502]
[1727661522705,1.2428,157.3,157.22,3.1794]
[1727661522906,1.2428,157.3,157.19,0.12502]
[1727661523308,3.1787,157.26,157.21,3.1795]
[1727661523509,3.1787,157.26,157.19,0.12502]
[1727661523823,1.2428,157.3,157.21,3.1795]
[1727661523824,3.1785,157.27,157.21,3.1795]
[1727661524118,19.55,157.29,157.19,0.12502]
[1727661524413,3.1786,157.27,157.23,3.1792]
[1727661524912,1.2428,157.3,157.22,3.1794]
[1727661524913,3.1783,157.28,157.22,3.1794]
[1727661525111,3.1783,157.28,157.19,0.12502]
[1727661525320,1.2428,157.3,157.19,0.12502]
[1727661525500,1.2428,157.3,157.22,3.1793]
[1727661525904,1.2428,157.3,157.19,0.12502]
[1727661526115,3.1785,157.27,157.23,3.179]
[1727661527410,3.1783,157.28,157.24,3.1788]
[1727661528114,1.2428,157.3,157.19,0.12502]
[1727661528316,3.1782,157.29,157.25,3.1786]
[1727661528615,1.2428,157.3,157.19,0.12502]
[1727661529019,3.1786,157.27,157.19,0.12502]
[1727661529515,12.22,157.29,157.19,0.12502]
[1727661529909,3.1787,157.26,157.22,3.1793]
[1727661530514,3.1787,157.26,157.19,0.12502]
[1727661530916,12.22,157.29,157.19,0.12502]
[1727661531105,12.22,157.29,157.22,3.1794]
[1727661531308,12.22,157.26,157.19,0.12502]
[1727661531514,3.179,157.24,157.2,3.1797]
[1727661531813,12.22,157.26,157.19,0.12502]
[1727661532012,12.22,157.29,157.19,0.12502]
[1727661532213,12.22,157.29,157.23,3.1791]
[1727661532406,12.22,157.29,157.19,0.12502]
[1727661532714,3.1785,157.27,157.23,3.1791]
[1727661532916,12.22,157.29,157.23,3.1791]
[1727661533117,12.22,157.29,157.19,12.34502]
[1727661533919,3.1786,157.27,157.19,12.34502]
[1727661534619,1.2428,157.3,157.19,12.34502]
[1727661535018,3.1788,157.26,157.19,12.34502]
[1727661535519,3.1788,157.26,157.23,3.1792]
[1727661536920,3.1788,157.26,157.19,12.34502]
[1727661537120,3.1789,157.25,157.22,3.1793]
[1727661540023,3.179,157.24,157.21,3.1795]
[1727661540517,3.1791,157.24,157.21,3.1796]
[1727661540925,3.1791,157.24,157.19,0.12502]
[1727661541915,12.22,157.28,157.2,3.1797]
[1727661542121,3.1793,157.23,157.2,3.1797]
[1727661542427,12.22,157.28,157.22,3.1793]
[1727661542629,3.1785,157.27,157.21,12.22]
[1727661543123,3.1785,157.27,157.23,3.1791]
[1727661543521,13.4628,157.3,157.19,0.12502]
[1727661543715,12.22,157.28,157.19,0.12502]
[1727661544121,1.2377,157.27,157.19,0.12502]
[1727661544326,3.1792,157.24,157.2,3.1798]
[1727661544624,1.2377,157.27,157.19,0.12502]
[1727661544827,3.1794,157.23,157.19,3.30492]
[1727661545718,1.2925,157.26,157.2,3.1798]
[1727661545920,3.1791,157.24,157.2,3.1798]
[1727661546322,1.2925,157.26,157.2,3.1798]
[1727661547122,3.1791,157.24,157.2,3.1798]
[1727661547326,1.2925,157.26,157.19,0.12502]
[1727661547524,1.2925,157.26,157.19,3.30502]
[1727661547729,3.179,157.24,157.19,0.12502]
[1727661548031,3.179,157.24,157.2,3.1797]
[1727661549029,1.2428,157.3,157.2,12.22]
[1727661550223,3.1783,157.28,157.23,3.1792]
[1727661550535,3.1783,157.28,157.2,12.22]
[1727661550923,1.2428,157.3,157.2,12.22]
[1727661551327,1.2428,157.3,157.24,3.179]
[1727661552225,1.2428,157.3,157.2,12.22]
[1727661552431,1.2428,157.3,157.22,12.22]
[1727661552627,3.1783,157.28,157.22,12.22]
[1727661552826,1.2428,157.3,157.24,3.1789]
[1727661553030,1.2428,157.3,157.24,6.41901026]
[1727661553440,3.1783,157.28,157.24,6.41901026]
[1727661553729,1.2428,157.3,157.22,3.1793]
[1727661553928,3.1787,157.26,157.22,3.1793]
[1727661554845,1.2428,157.3,157.23,3.1792]
[1727661554846,3.1785,157.27,157.23,3.1792]
[1727661555233,1.2428,157.3,157.2,12.22]
[1727661555427,3.1787,157.26,157.19,0.12502]
[1727661555737,12.22,157.28,157.19,0.12502]
[1727661556038,3.1787,157.26,157.2,3.1798]
[1727661556230,0.12502,157.31,157.21,12.22]
[1727661556736,12.34502,157.31,157.21,12.22]
[1727661557037,12.22,157.28,157.19,0.12502]
[1727661557425,12.22,157.3,157.19,0.12502]
[1727661559937,3.1788,157.26,157.19,0.12502]
[1727661560334,12.22,157.3,157.19,0.12502]
[1727661560540,12.22,157.3,157.21,3.1795]
[1727661560835,0.12502,157.31,157.19,0.12502]
[1727661561040,0.12502,157.31,157.21,12.22]
[1727661561935,3.1784,157.27,157.23,3.1791]
[1727661562735,0.12502,157.31,157.19,0.12502]
[1727661562944,3.1786,157.26,157.22,3.1792]
[1727661563240,12.34502,157.31,157.19,12.34502]
[1727661563747,3.1783,157.28,157.24,3.179]
[1727661565932,3.178,157.29,157.25,3.1787]
[1727661566244,0.12502,157.31,157.26,12.22]
[1727661566434,0.12502,157.31,157.26,15.36235047]
[1727661566632,0.12502,157.31,157.28,3.178]
[1727661568537,0.12502,157.31,157.26,15.36235047]
[1727661568538,0.12502,157.31,157.29,3.1778]
[1727661568738,0.12502,157.31,157.26,15.36235047]
[1727661568943,0.12502,157.31,157.28,12.22]
[1727661569339,0.12502,157.31,157.3,3.1778]
[1727661570145,0.12502,157.31,157.3,15.3978]
[1727661570852,0.12502,157.37,157.34,3.1768]
[1727661571039,0.12502,157.37,157.35,12.22]
[1727661571552,0.12502,157.37,157.34,6.32100914]
[1727661572647,0.12502,157.37,157.34,3.14420914]
[1727661572843,3.30162,157.37,157.3,12.22]
[1727661573151,0.12502,157.37,157.3,12.22]
[1727661574244,3.30142,157.37,157.3,12.22]
[1727661574640,3.30142,157.37,157.32,3.1772]
[1727661574641,3.1767,157.36,157.32,3.1772]
[1727661574841,0.12502,157.37,157.32,3.1772]
[1727661575454,3.1766,157.36,157.32,3.1772]
[1727661576143,3.1766,157.36,157.3,12.22]
[1727661576846,3.1766,157.36,157.32,3.1772]
[1727661577047,0.12502,157.37,157.3,12.22]
[1727661577248,3.30142,157.37,157.3,12.22]
[1727661577447,0.12502,157.37,157.3,12.22]
[1727661577753,3.1766,157.36,157.32,3.1774]
[1727661578250,3.1766,157.36,157.3,12.22]
[1727661578661,3.1776,157.31,157.26,4.38245047]
[1727661578843,12.22,157.34,157.26,3.14235047]
[1727661579549,3.1778,157.3,157.26,6.32085047]
[1727661579748,12.22,157.34,157.25,0.12502]
[1727661580250,12.22,157.34,157.25,3.30362]
[1727661580451,12.22,157.34,157.25,0.12502]
[1727661581258,3.1782,157.28,157.25,0.12502]
[1727661581845,3.178,157.29,157.25,0.12502]
[1727661582555,3.1778,157.3,157.26,3.1786]
[1727661583051,12.22,157.34,157.25,0.12502]
[1727661583250,3.1782,157.29,157.25,0.12502]
[1727661583642,3.1782,157.29,157.25,3.30372]
[1727661583843,3.1782,157.29,157.25,0.12502]
[1727661584244,12.22,157.34,157.26,3.1785]
[1727661586356,3.1778,157.3,157.26,3.1785]
[1727661588054,3.1774,157.32,157.28,3.1782]
[1727661588650,3.1774,157.32,157.27,3.1782]
[1727661589956,3.8696,157.35,157.26,12.22]
[1727661590152,1.2866,157.35,157.28,12.22]
[1727661590451,3.1766,157.36,157.32,3.1774]
[1727661592846,0.12502,157.37,157.31,12.22]
[1727661593260,0.12502,157.37,157.25,0.12502]
[1727661593455,0.12502,157.37,157.27,12.22]
[1727661593661,0.12502,157.37,157.3,12.22]
[1727661593866,3.1766,157.36,157.32,3.1772]
[1727661594060,3.1766,157.36,157.32,15.3972]
[1727661594550,0.12502,157.37,157.32,12.22]
[1727661594751,3.30142,157.37,157.33,3.1772]
[1727661595160,3.30142,157.37,157.32,15.3973]
[1727661595462,3.1766,157.36,157.32,15.3973]
[1727661596260,3.1768,157.35,157.3,3.1777]
[1727661596558,3.1768,157.35,157.29,12.22]
[1727661596963,3.1766,157.36,157.32,3.1774]
[1727661600067,3.1768,157.35,157.31,3.1776]
[1727661600367,0.12502,157.37,157.29,12.22]
[1727661600568,12.22,157.36,157.25,0.12502]
[1727661600760,3.1779,157.3,157.26,3.1786]
[1727661600964,2.5964,157.35,157.25,0.12502]
[1727661601161,12.22,157.32,157.25,0.12502]
[1727661601564,7.82,157.31,157.25,7.94502]
[1727661601765,3.1776,157.32,157.27,7.82]
[1727661601973,7.82,157.33,157.27,7.82]
[1727661602454,3.1776,157.32,157.27,7.82]
[1727661602658,7.82,157.33,157.27,7.82]
[1727661602868,7.82,157.33,157.25,3.30362]
[1727661603067,3.178,157.29,157.27,7.82]
[1727661603266,7.82,157.33,157.27,7.82]
[1727661603772,1.2918,157.34,157.25,15.51362]
[1727661603969,3.178,157.3,157.25,15.51362]
[1727661604471,3.178,157.3,157.25,12.33502]
[1727661604777,1.2918,157.34,157.27,12.21]
[1727661604965,1.3471,157.35,157.29,12.21]
[1727661605160,0.12502,157.37,157.32,12.21]
[1727661605767,3.1767,157.36,157.32,12.21]
[1727661605973,0.12502,157.37,157.32,12.21]
[1727661606470,3.1769,157.35,157.32,12.21]
[1727661607378,0.12502,157.37,157.3,12.21]
[1727661607767,3.1768,157.35,157.3,12.21]
[1727661608068,0.12502,157.37,157.3,12.21]
[1727661608270,0.12502,157.37,157.32,12.21]
[1727661608469,3.30142,157.37,157.32,15.3872]
[1727661608773,0.12502,157.37,157.32,12.21]
[1727661609170,0.12502,157.37,157.3,12.21]
[1727661609982,3.177,157.34,157.3,12.21]
[1727661610686,0.12502,157.37,157.28,12.21]
[1727661610885,0.12502,157.37,157.28,15.3882]
[1727661610886,3.1774,157.32,157.28,15.3882]
[1727661611087,0.12502,157.37,157.28,15.3882]
[1727661611585,3.1773,157.33,157.28,15.3882]
[1727661611989,0.12502,157.37,157.25,2.78322]
[1727661611990,0.12502,157.37,157.32,12.21]
[1727661612290,0.12502,157.37,157.32,15.34618282]
[1727661612679,3.30142,157.37,157.32,15.34618282]
[1727661613079,0.12502,157.37,157.32,15.34618282]
[1727661613284,0.12502,157.37,157.33,3.1771]
[1727661614084,0.12502,157.37,157.35,12.21]
[1727661615981,0.12502,157.37,157.35,15.3867]
[1727661616187,0.12502,157.37,157.35,12.21]
[1727661616384,1.39572,157.43,157.35,12.21]
[1727661616588,3.1756,157.41,157.37,15.3864]
[1727661616789,1.39572,157.43,157.37,12.21]
[1727661617577,1.39572,157.43,157.32,1.3522]
[1727661617784,13.60572,157.43,157.31,12.33502]
[1727661618287,3.1767,157.36,157.31,15.51252]
[1727661618790,13.60572,157.43,157.31,15.51252]
[1727661618987,3.1768,157.35,157.31,15.51252]
[1727661620296,3.1763,157.38,157.34,3.177]
[1727661620594,1.39572,157.43,157.36,12.21]
[1727661621094,3.1761,157.39,157.36,12.21]
[1727661622482,3.1758,157.4,157.36,12.21]
[1727661623191,1.39572,157.43,157.36,12.21]
[1727661623890,3.1759,157.4,157.36,12.21]
[1727661624092,1.39572,157.43,157.36,12.21]
[1727661624294,1.39572,157.43,157.32,3.10971179]
[1727661624295,3.1759,157.4,157.38,12.21]
[1727661624489,1.39572,157.43,157.35,15.3866]
[1727661624990,3.1761,157.39,157.35,15.41172213]
[1727661626392,3.1761,157.39,157.35,18.58852213]
[1727661627593,1.39572,157.43,157.35,15.41172213]
[1727661627894,1.39572,157.43,157.33,12.21]
[1727661628298,1.39572,157.43,157.33,15.3872]
[1727661628501,1.39572,157.43,157.33,12.21]
[1727661628703,3.1761,157.39,157.34,3.1768]
[1727661628996,3.1761,157.39,157.35,12.21]
[1727661629402,3.1761,157.39,157.35,15.3867]
[1727661630002,1.39572,157.43,157.32,3.1430096]
[1727661630003,1.39572,157.43,157.33,12.21]
[1727661630904,3.1767,157.36,157.31,12.33502]
[1727661631100,3.10021909,157.37,157.31,0.12502]
[1727661631294,32.64572,157.43,157.31,0.12502]
[1727661631295,2.5795,157.35,157.31,0.12502]
[1727661631501,3.1774,157.32,157.31,0.12502]
[1727661631904,2.5795,157.35,157.31,0.12502]
[1727661632197,1.2664,157.36,157.31,0.12502]
[1727661632395,0.12502,157.43,157.32,12.21]
[1727661632396,14.8567,157.42,157.32,12.21]
[1727661632596,3.1769,157.35,157.32,12.21]
[1727661633103,9.92741006,157.41,157.32,12.21]
[1727661633305,9.92741006,157.41,157.32,15.3873]
[1727661633702,3.1766,157.36,157.32,12.21]
[1727661634503,3.1764,157.37,157.32,15.3872]
[1727661634708,1.2614,157.41,157.36,12.21]
[1727661634904,1.3022,157.42,157.36,12.21]
[1727661635107,0.12502,157.43,157.33,1.2557]
[1727661635303,0.12502,157.43,157.39,12.21]
[1727661635604,0.12502,157.43,157.41,12.21]
[1727661641309,0.12502,157.43,157.39,12.21]
[1727661641509,3.1758,157.4,157.39,12.21]
[1727661641715,0.12502,157.43,157.36,12.21]
[1727661642308,3.1758,157.41,157.36,15.3866]
[1727661642509,0.12502,157.43,157.36,12.21]
[1727661643017,0.12502,157.43,157.36,15.3864]
[1727661643625,3.1756,157.41,157.36,15.3864]
[1727661643816,0.12502,157.43,157.39,12.21]
[1727661644010,0.12502,157.43,157.41,12.21]
[1727661644206,3.1754,157.42,157.41,12.21]
[1727661645015,3.1754,157.42,157.39,12.21]
[1727661645809,3.30032,157.43,157.39,12.21]
[1727661646010,0.12502,157.43,157.39,12.21]
[1727661646419,3.1755,157.42,157.39,12.21]
[1727661646713,0.12502,157.43,157.39,12.21]
[1727661646917,3.1757,157.41,157.39,12.21]
[1727661647213,0.12502,157.43,157.35,12.21]
[1727661647410,0.12502,157.43,157.33,12.21]
[1727661647612,3.1765,157.37,157.33,12.21]
[1727661647915,2.85042,157.43,157.33,15.40305524]
[1727661648117,3.1763,157.38,157.33,18.58005524]
[1727661648315,2.85042,157.43,157.33,15.40305524]
[1727661648515,2.85042,157.43,157.35,12.21]
[1727661648712,3.1758,157.4,157.37,12.21]
[1727661650414,0.12502,157.43,157.37,12.21]
[1727661650623,0.12502,157.49,157.42,12.21]
[1727661650913,3.35248303,157.49,157.42,12.21]
[1727661651620,3.1748,157.45,157.44,12.21]
[1727661651816,0.12502,157.49,157.44,12.21]
[1727661652014,3.1745,157.47,157.44,12.21]
[1727661652608,0.12502,157.49,157.44,12.21]
[1727661653213,3.1745,157.47,157.44,12.21]
[1727661654222,0.12502,157.49,157.44,12.21]
[1727661654425,0.12502,157.49,157.46,12.21]
[1727661654717,3.29912,157.49,157.46,12.21]
[1727661655121,0.12502,157.49,157.46,12.21]
[1727661655617,3.29902,157.49,157.46,12.21]
[1727661655823,0.12502,157.49,157.46,12.21]
[1727661656913,3.1743,157.48,157.46,12.21]
[1727661657910,0.12502,157.49,157.46,12.21]
[1727661658116,3.1744,157.47,157.46,12.21]
[1727661658316,0.12502,157.49,157.46,12.21]
[1727661659115,3.1743,157.48,157.46,12.21]
[1727661659924,0.12502,157.49,157.44,12.21]
[1727661660623,3.1744,157.47,157.44,12.21]
[1727661660824,0.12502,157.49,157.44,12.21]
[1727661661219,3.1745,157.47,157.44,12.21]
[1727661661423,0.12502,157.49,157.44,12.21]
[1727661662128,0.12502,157.49,157.37,0.12502]
[1727661662422,0.12502,157.49,157.38,12.21]
[1727661662423,12.21,157.47,157.38,12.21]
[1727661662728,16.0343,157.46,157.37,0.12502]
[1727661662933,3.8243,157.46,157.38,12.21]
[1727661663135,3.8243,157.46,157.42,12.21]
[1727661663619,3.1752,157.43,157.42,12.21]
[1727661664127,3.1752,157.43,157.4,12.21]
[1727661664828,3.1754,157.42,157.4,12.21]
[1727661665927,3.8243,157.46,157.4,12.21]
[1727661666129,3.8243,157.46,157.37,0.12502]
[1727661666631,3.1762,157.38,157.37,0.12502]
[1727661667832,1.3028,157.4,157.37,0.12502]
[1727661668030,2.5191,157.46,157.38,12.21]
[1727661668223,1.2787,157.45,157.38,12.21]
[1727661668621,1.2787,157.45,157.4,12.21]
[1727661669831,1.2787,157.45,157.38,12.21]
[1727661670519,1.2787,157.45,157.37,0.12502]
[1727661670733,1.2787,157.45,157.4,12.21]
[1727661670934,0.12502,157.49,157.42,12.21]
[1727661671335,3.1744,157.47,157.42,12.21]
[1727661671529,3.1744,157.47,157.37,0.12502]
[1727661671530,0.12502,157.49,157.45,12.21]
[1727661673526,3.1742,157.48,157.45,12.21]
[1727661674939,0.12502,157.49,157.43,12.21]
[1727661675431,0.12502,157.49,157.41,12.21]
[1727661676236,0.12502,157.49,157.43,12.21]
[1727661676437,3.1747,157.46,157.43,12.21]
[1727661677028,0.12502,157.49,157.43,12.21]
[1727661677232,3.1751,157.44,157.4,12.21]
[1727661678328,3.1748,157.45,157.4,15.3857]
[1727661678534,0.12502,157.49,157.43,12.21]
[1727661678742,0.12502,157.49,157.45,12.21]
[1727661679630,0.12502,157.49,157.47,12.21]
[1727661680136,0.12502,157.55,157.47,12.21]
[1727661680342,0.12502,157.55,157.5,12.21]
[1727661680533,0.12502,157.55,157.52,12.21]
[1727661680731,0.12502,157.55,157.54,12.21]
[1727661680932,0.12502,157.61,157.54,12.21]
[1727661681146,3.1724,157.57,157.54,12.21]
[1727661681338,0.12502,157.61,157.54,12.21]
[1727661681729,3.1725,157.57,157.54,12.21]
[1727661682639,3.1722,157.58,157.54,12.21]
[1727661683644,3.1722,157.58,157.53,19.51]
[1727661683844,3.1722,157.58,157.53,22.6831]
[1727661684139,8.76798358,157.61,157.55,19.51]
[1727661684335,1.3032,157.66,157.58,19.51]
[1727661684535,12.21033619,157.66,157.58,19.51]
[1727661684733,1.3032,157.66,157.58,19.51]
[1727661685253,3.1711,157.64,157.58,19.51]
[1727661685845,3.1711,157.64,157.58,22.6821]
[1727661686541,3.1712,157.63,157.58,22.6821]
[1727661687236,3.1716,157.61,157.55,22.80772]
[1727661687836,3.1719,157.6,157.55,22.80772]
[1727661688236,3.172,157.59,157.55,22.80772]
[1727661688438,1.3032,157.66,157.55,19.63502]
[1727661689041,3.1721,157.59,157.55,19.63502]
[1727661689248,1.3032,157.66,157.55,19.63502]
[1727661689640,1.3032,157.66,157.58,19.51]
[1727661690144,3.1711,157.64,157.58,19.51]
[1727661690345,3.1711,157.64,157.6,19.51]
[1727661690847,1.3032,157.66,157.6,19.51]
[1727661691144,0.12502,157.67,157.6,19.51]
[1727661691531,3.1707,157.66,157.6,22.6816]
[1727661691747,0.12502,157.67,157.6,22.6816]
[1727661692048,0.12502,157.67,157.63,19.51]
[1727661692341,0.12502,157.67,157.63,22.6811]
[1727661692545,1.2472,157.72,157.66,19.51]